{"text_format":"1","workbook":"xlsx","n_sheets":1,"sheets":["Сальдо"],"not_rendered":{"charts":0,"images":0,"macros":1,"external_links":0,"defined_names":1,"comments":0,"pivot_tables":0},"unopened":[],"bounds":{"document_bytes":16777216,"sheet_cells":100000,"rows_first":2000,"rows_last":500,"rows_between":2000,"halvings":0,"cell_chars":16384,"cell_head_chars":4096},"cells_cut":0,"cells_raw":0,"read":"whole","date_system":"1900"}

{"sheet":"Сальдо","index":0,"n_rows":26,"n_cols":12,"rows_kept":26,"cut":false,"hidden":false,"merged":[[1,11,10,11]]}
["Фамилия","Табельный номер","Пояснение","Материал","ЕИ спецодежды","списать/продлить","Дата выпуска спецод.","Срок носки","Стоимость","Кол-во",{"$f":"СцепитьМного(K2:K26,\", \",TRUE)","v":"белье, костюм, подшлемник, сапоги, ботинки, халат, шапка-ушанка, перчатки"},"Должно быть так                   белье, костюмы, подшлемники, сапоги, ботинки, халаты, шапки, перчатки"]
["Шаврин А.А.","1902910","Белье м.М02-17/3 48-50/3",null,null,null,null,null,null,null,{"$f":"LOWER(LEFT(C2&\" \",SEARCH(\" \",C2)-1))","v":"белье"},"Здравствуйте! Если не трудно помогите подкорректировать макрос в ячейке К1! Добавить множественное число!"]
["Кристовир А.А.","1912622","Белье м.М02-17/3 48-50/4",null,null,null,null,null,null,null,{"$f":"LOWER(LEFT(C3&\" \",SEARCH(\" \",C3)-1))","v":"белье"}]
["Кульчицкая Л.С.","1912044","Костюм ж.Полюс 4 FR-Бж/4 зимн.48-50/1",null,null,null,null,null,null,null,"костюм"]
[null,"1912622","Костюм ж.Полюс 4 FR-Бж/4 зимн.48-50/2",null,null,null,null,null,null,null,"костюм"]
["Курмандаев Э.Р.","1927879","Подшлемник М-271ПШ трикотажный",null,null,null,null,null,null,null,"подшлемник"]
["Кульчицкая Л.С.","1912044","Подшлемник М-271ПШ трикотажный",null,null,null,null,null,null,null,"подшлемник"]
["Туйцин И.В.","1912114","Сапоги м.кож.Союз2 СЛМ-003К 42",null,null,null,null,null,null,null,"сапоги"]
["Кристовир А.А.","1912622","Сапоги м.кож.Союз2 СЛМ-003К 43",null,null,null,null,null,null,null,"сапоги"]
["Гулеватый С.В.","1915704","Ботинки кож.мод.Союз2-БЛ1 45",null,null,null,null,null,null,null,"ботинки"]
["Павленко Д.А.","1912130","Ботинки кож.мод.Союз2-БЛ1 45",null,null,null,null,null,null,null,"ботинки"]
[null,"1908556","Халат ж.Алина 107-0006-02 голуб.48-50/1",null,null,null,null,null,null,null,"халат"]
[null,"1904982","Халат ж.Алина 107-0006-02 голуб.48-50/1",null,null,null,null,null,null,null,"халат"]
[null,"1901408","Сапоги мод.Союз СУ-1 39",null,null,null,null,null,null,null,"сапоги"]
[null,"1897834","Шапка-ушанка М-37Д убор голов.зим.59",null,null,null,null,null,null,null,"шапка-ушанка"]
[null,"1894260","Перчатки Ansell Wint*MonkeyGr*23-193р.10",null,null,null,null,null,null,null,"перчатки"]
[null,"1890686","Сапоги ж.кож.Союз2 СЛЖ-003К 39",null,null,null,null,null,null,null,"сапоги"]
[null,"1887112","Перчатки Arcticus 4440 нитрил.покр.р.10",null,null,null,null,null,null,null,"перчатки"]
[null,"1883538","Халат ж.Алина 107-0006-02 голуб.48-50/1",null,null,null,null,null,null,null,"халат"]
[null,"1879964","Подшлемник М-271ПШ трикотажный",null,null,null,null,null,null,null,"подшлемник"]
[null,"1876390","Костюм м.Оптима FR-Бм/2*летн.48-50/1",null,null,null,null,null,null,null,"костюм"]
[null,"1872816","Перчатки Ansell Wint*MonkeyGr*23-193р.10",null,null,null,null,null,null,null,"перчатки"]
[null,"1869242","Сапоги ж.кож.Союз2 СЛЖ-003К 39",null,null,null,null,null,null,null,"сапоги"]
[null,"1865668","Халат ж.Алина 107-0006-02 голуб.48-50/1",null,null,null,null,null,null,null,"халат"]
[null,"1862094","Подшлемник М-271ПШ трикотажный",null,null,null,null,null,null,null,"подшлемник"]
[null,"1858520","Костюм ж.Полюс 4 FR-Бж/4 зимн.48-50/1",null,null,null,null,null,null,null,"костюм"]